[Event "45th FIDE Olympiad 2024"]
[Site "Budapest"]
[Date "2024.09.15"]
[Round "5.29"]
[White "Chinasamy, Devarajen"]
[Black "Barcon, Harmon"]
[Result "1/2-1/2"]
[ECO "D00"]
[WhiteElo "1975"]
[BlackElo "1968"]
[PlyCount "46"]
[EventDate "2024.09.05"]
[EventType "team-tourn"]
[EventCountry "HUN"]
[WhiteTeam "Mauritius"]
[BlackTeam "Liberia"]
[WhiteTeamCountry "MRI"]
[BlackTeamCountry "LBR"]
[TimeControl "40/5400+30:1800+30"]

1. d4 d5 2. Nc3 Nf6 3. Bf4 a6 4. e3 e6 5. g4 Bb4 6. Nge2 Ne4 7. h4 c5 8. f3 Nf6 9. a3 Bxc3+ 10. Nxc3 cxd4 11. exd4 Nc6 12. Qd2 b5 13. Ne2 Qb6 14. c3 Na5 15. Nc1 Nc4 16. Qh2 Qc6 17. Nd3 Nd7 18. Nb4 Qb7 19. Nd3 Qc6 20. Nb4 Qb7 21. Nd3 Qc6 22. Nb4 Qb7 23. Nd3 Qc6 1/2-1/2

[Event "45th FIDE Olympiad 2024"]
[Site "Budapest"]
[Date "2024.09.15"]
[Round "5.30"]
[White "Lashkin, Jegor"]
[Black "Yakubboev, Nodirbek"]
[Result "1/2-1/2"]
[ECO "D45"]
[WhiteElo "2472"]
[BlackElo "2666"]
[Annotator "TA"]
[PlyCount "61"]
[EventDate "2024.09.05"]
[EventType "team-tourn"]
[EventCountry "HUN"]
[SourceTitle "playchess.com"]
[Source "ChessBase"]
[SourceQuality "1"]
[WhiteTeam "Moldova"]
[BlackTeam "Uzbekistan"]
[WhiteTeamCountry "MDA"]
[BlackTeamCountry "UZB"]
[TimeControl "40/5400+30:1800+30"]

{[%evp 19,61,0,30,6,10,16,13,0,21,24,34,12,22,0,53,69,60,-63,0,0,0,0,0,0,0,0,0,0,0,0,0,0,0,0,0,0,0,0,0,0,0,0,0,0]} 1. d4 {[%emt 0:00:09]} Nf6 {[%emt 0:00:11]} 2. c4 {[%emt 0:00:09]} e6 {[%emt 0:00:04]} 3. Nf3 {[%emt 0:00:07]} d5 {[%emt 0:00:05]} 4. Nc3 {[%emt 0:00:06]} c6 {[%emt 0:00:07]} 5. e3 {[%emt 0:00:05]} Nbd7 {[%emt 0:00:04]} 6. Be2 {[%emt 0:00:07]} Bd6 {[%emt 0:00:37]} 7. O-O {[%emt 0:00:09]} O-O {[%emt 0:00:15]} 8. b3 {[%emt 0:00:07]} b6 {[%emt 0:00:08]} 9. Bb2 {[%emt 0:00:07]} Bb7 {[%emt 0:00:05]} 10. Qc2 {[%emt 0:00:11]} Rc8 {[%emt 0:00:10]} 11. Rad1 {[%emt 0:00:40]} c5 {[%emt 0:00:09]} 12. dxc5 {[%emt 0:00:46]} Nxc5 {[%emt 0:00:08][%cal Bd7c5,Bc5e4,Be4c3][%mdl 32]} 13. cxd5 {[%emt 0:03:10][%cal Bc4d5,Bd5e6,Be6f7][%mdl 32]} Nce4 {[%emt 0:00:09]} 14. dxe6 {[%emt 0:39:49]} Nxc3 $1 {[%emt 0:00:08]} 15. Bxc3 {[%emt 0:00:10]} Ne4 {[%emt 0:00:24] Against Ng5} 16. Bc4 {[%emt 0:02:02] aiming for Be5.} (16. exf7+ $5 Rxf7 17. Bc4 Rxc4 18. bxc4 Nxc3 (18... Rxf3 $2 19. c5 $18) 19. Rxd6 (19. Qxc3 Bxf3 20. gxf3 Bxh2+ 21. Kg2 Qg5+ 22. Kxh2 Qh5+ 23. Kg1 Qg5+ 24. Kh2 Qh5+ 25. Kg1 Qg5+ 26. Kh2 $11) 19... Qxd6 20. Ng5 $14 (20. Qxc3 $2 Rxf3 21. Qc2 Rf6 $19)) 16... b5 {[%emt 0:02:25]} 17. exf7+ $14 {[%emt 0:00:13]} (17. Rxd6 $2 Nxd6 18. exf7+ Nxf7 $19) 17... Kh8 {[%emt 0:00:02] [#] Threatens to win with ...Nxc3.} 18. Nd4 {[%emt 0:02:40]} Nxc3 {[%emt 0:26:02]} (18... Qh4 $1 $15 19. Nf3 (19. Nxb5 $2 Qxh2#) 19... Qh6) 19. Ne6 $11 {[%emt 0:13:37] The position is equal.} Bxh2+ {[%emt 0:04:01]} 20. Kxh2 {[%emt 0:00:01]} Qh4+ {[%emt 0:00:09]} (20... Nxd1 $2 21. Nxd8 Nxe3 22. fxe3 $18) 21. Kg1 {[%emt 0:00:01]} Nxd1 {[%emt 0:27:37]} 22. Nxf8 {[%emt 0:00:08]} bxc4 {[%emt 0:07:19]} 23. Ne6 {[%emt 0:06:13] [#] Strongly threatening Qf5. Some like it hot} (23. Rxd1 Rxf8 24. Qxc4 Qe7 $17) 23... Bxg2 $1 {[%emt 0:02:26]} 24. Kxg2 {[%emt 0:02:04]} (24. f8=Q+ Rxf8 25. Kxg2 Qg4+ (25... Rxf2+ 26. Rxf2 Nxe3+ 27. Kg1 $11) 26. Kh1 Rf6 (26... Qxe6 27. Rxd1 c3 28. Rd3 $15) (26... Nxe3 $2 27. Qxh7+ Kxh7 28. Nxf8+ Kg8 29. fxe3 $19) 27. f3 Qh3+ (27... Qxe6 $2 28. Rxd1 Qh3+ 29. Kg1 $19) (27... Rh6+ 28. Qh2 Rxh2+ 29. Kxh2 Qh4+ 30. Kg1 Nxe3 31. Rf2 Qg3+ 32. Kh1 Qxf2 33. Nf4 g5 34. bxc4 gxf4 35. c5 Qg2#) 28. Kg1 Nxe3) 24... Qg4+ {[%emt 0:00:04]} 25. Kh2 {[%emt 0:01:21]} Qh4+ {[%emt 0:01:55]} 26. Kg2 {[%emt 0:00:07]} (26. Kg1 $5 Qg4+ $8 27. Kh2 Qh4+ 28. Kg1 Qg4+ 29. Kh1 Qh3+ 30. Kg1 Qg4+ $11) 26... Qg4+ {[%emt 0:00:05]} 27. Kh2 {[%emt 0:00:06]} Qh4+ {[%emt 0:01:56]} 28. Kg2 {[%emt 0:00:20]} (28. Kg1 $5 Qg4+ $8 29. Kh2 $11) 28... Qg4+ {[%emt 0:00:07]} 29. Kh2 {[%emt 0:00:05]} Qh4+ {[%emt 0:00:06]} 30. Kg2 {[%emt 0:00:04]} (30. Kg1 $5 Qg4+ $8 31. Kh2 $11) 30... Qg4+ {[%emt 0:00:04]} 31. Kh2 {[%emt 0:00:04] Weighted Error Value: White=0.07 (flawless) /Black=0.08 (flawless) .  Mistake:       	White=1     	Black=2      OK:         	White=4     	Black=10     Best:        	White=2     	Black=3      Strong:       	---       	Black=2} 1/2-1/2

[Event "45th FIDE Olympiad 2024"]
[Site "Budapest"]
[Date "2024.09.15"]
[Round "5.30"]
[White "David, Leroy Debblay"]
[Black "Lam Kin Cheung, Stephane"]
[Result "1-0"]
[ECO "A43"]
[WhiteElo "1904"]
[BlackElo "1677"]
[PlyCount "161"]
[EventDate "2024.09.05"]
[EventType "team-tourn"]
[EventCountry "HUN"]
[WhiteTeam "Liberia"]
[BlackTeam "Mauritius"]
[WhiteTeamCountry "LBR"]
[BlackTeamCountry "MRI"]
[TimeControl "40/5400+30:1800+30"]

1. d4 c5 2. d5 Nf6 3. Nc3 d6 4. e4 g6 5. f4 Bg7 6. Nf3 O-O 7. Be2 Nbd7 8. O-O a6 9. a4 Rb8 10. h3 Ne8 11. Be3 Nc7 12. a5 b5 13. axb6 Nxb6 14. Qd2 Qd7 15. Rfd1 Nb5 16. e5 Bb7 17. Nxb5 axb5 18. Qa5 Nxd5 19. Bxb5 Bc6 20. Bxc6 Qxc6 21. Qa3 Nxe3 22. Qxe3 Rxb2 23. Qd3 Rd8 24. Ra6 Rb6 25. Ra7 e6 26. Ng5 Rd7 27. Rxd7 Qxd7 28. Ne4 d5 29. Nxc5 Qb5 30. Nb3 Qxd3 31. Rxd3 Rc6 32. Nd4 Rc4 33. c3 Bf8 34. g4 Bc5 35. Kg2 Bb6 36. Ne2 Kg7 37. g5 Re4 38. Kf3 h6 39. h4 hxg5 40. hxg5 Rc4 41. Rd1 Re4 42. Rd3 Rc4 43. Rd2 Kf8 44. Rb2 Ba5 45. Rb3 Ke7 46. Ke3 Kd7 47. Rb7+ Bc7 48. Kd3 Kc6 49. Ra7 Rc5 50. Nd4+ Kd7 51. Nb3 Rb5 52. Kc2 Kc8 53. Nd4 Ra5 54. Rxa5 Bxa5 55. Nb5 Kd7 56. Kd3 Bb6 57. Nd6 Bc5 58. Nxf7 Ke7 59. Nh8 Bf2 60. Nxg6+ Kf7 61. f5 Bg3 62. Ke3 exf5 63. Nf4 Be1 64. g6+ Kg7 65. e6 Kf6 66. Kd4 Bg3 67. Nh5+ Kxe6 68. Nxg3 f4 69. Nh5 f3 70. g7 Kf7 71. Ke3 d4+ 72. cxd4 f2 73. Kxf2 Kg8 74. d5 Kh7 75. d6 Kg8 76. d7 Kh7 77. Kg3 Kg8 78. d8=Q+ Kh7 79. Qh8+ Kg6 80. g8=Q+ Kf5 81. Qg4# 1-0

[Event "45th FIDE Olympiad 2024"]
[Site "Budapest"]
[Date "2024.09.15"]
[Round "5.31"]
[White "Sindarov, Javokhir"]
[Black "Bologan, Victor"]
[Result "1-0"]
[ECO "C56"]
[WhiteElo "2677"]
[BlackElo "2598"]
[Annotator "TA"]
[PlyCount "81"]
[EventDate "2024.09.05"]
[EventType "team-tourn"]
[EventCountry "HUN"]
[SourceTitle "playchess.com"]
[Source "ChessBase"]
[SourceQuality "1"]
[WhiteTeam "Uzbekistan"]
[BlackTeam "Moldova"]
[WhiteTeamCountry "UZB"]
[BlackTeamCountry "MDA"]
[TimeControl "40/5400+30:1800+30"]

{[%evp 22,81,54,48,37,26,35,23,41,39,43,27,56,0,0,0,0,0,9,0,73,68,83,19,44,23,13,8,43,52,67,19,38,41,54,41,47,33,122,118,131,127,256,241,356,347,314,335,352,400,391,366,454,455,749,745,779,764,1067,1073,1124,1033]} 1. e4 {[%emt 0:00:05]} e5 {[%emt 0:00:06]} 2. Nf3 {[%emt 0:00:14]} Nc6 {[%emt 0:00:07]} 3. Bc4 {[%emt 0:00:16]} d6 {[%emt 0:00:23]} 4. d4 {[%emt 0:04:29]} Nf6 {[%emt 0:00:50]} 5. d5 {[%emt 0:16:52]} Ne7 {[%emt 0:01:08]} 6. Bd3 {[%emt 0:00:56] C56: Two Knights: 4 d4 exd4 5 0-0 Nxe4.} g6 {[%emt 0:00:50]} 7. c4 {[%emt 0:01:09]} Bg7 {[%emt 0:01:00]} 8. Nc3 {[%emt 0:00:07]} O-O {[%emt 0:01:37]} 9. h3 {[%emt 0:01:34]} a5 {[%emt 0:08:45]} 10. Be3 {[%emt 0:10:13]} Nd7 {[%emt 0:10:05]} 11. g4 {[%emt 0:02:16]} Nc5 {[%emt 0:00:47]} 12. Bc2 {[%emt 0:01:25]} b6 {[%emt 0:05:22]} 13. Rg1 $146 {[%emt 0:03:43]} ({Predecessor:} 13. Qe2 a4 14. O-O-O Bd7 15. Rdg1 c6 16. h4 cxd5 17. Bxc5 bxc5 18. Nxd5 Nxd5 19. cxd5 {0-1 Zemerov,V (2268)-Khodzhamkuliev,B (2167) Titled Tuesday intern op 03rd Aug blitz 2021 (9)}) 13... Ba6 {[%emt 0:02:30]} 14. Nd2 {[%emt 0:16:17]} c6 {[%emt 0:01:33]} 15. a4 {[%emt 0:02:02]} Kh8 {[%emt 0:03:50]} 16. h4 {[%emt 0:01:31]} cxd5 {[%emt 0:01:58]} 17. cxd5 {[%emt 0:00:05]} (17. exd5 $14 e4 18. Ndxe4 (18. Bxe4 f5 $11)) 17... Qd7 $11 {[%emt 0:15:54]} 18. g5 {[%emt 0:08:58]} f6 {[%emt 0:05:57]} 19. Ra3 {[%emt 0:05:44]} Rac8 {[%emt 0:01:56]} 20. Nb3 {[%emt 0:00:43]} Ng8 {[%emt 0:10:47]} (20... f5 $11) 21. Nxc5 {[%emt 0:00:31]} bxc5 {[%emt 0:00:09]} 22. Bd3 {[%emt 0:05:11]} (22. h5 $16) 22... c4 $11 {[%emt 0:00:56]} 23. Bc2 {[%emt 0:06:03]} Rb8 {[%emt 0:02:55]} 24. Bc1 {[%emt 0:00:35]} Qf7 {[%emt 0:08:31]} 25. Rg2 {[%emt 0:01:49]} h5 {[%emt 0:00:45]} 26. Kf1 {[%emt 0:01:05]} (26. gxh6 $14 {might be stronger.} Bxh6 27. Bxh6 Nxh6 28. Qd2) 26... fxg5 {[%emt 0:04:05]} 27. hxg5 {[%emt 0:00:02]} Ne7 {[%emt 0:00:14]} 28. Kg1 {[%emt 0:00:35]} Kg8 {[%emt 0:01:33]} 29. Ne2 {[%emt 0:02:00]} Bc8 {[%emt 0:00:38]} (29... Rb4 $14) 30. Qe1 $16 {[%emt 0:03:56]} Rb4 {[%emt 0:01:29] [#]} 31. Nc3 $1 {[%emt 0:00:45]} Bh3 {[%emt 0:06:50] [#]} (31... Bg4 $16 {was necessary.}) 32. Nb5 $1 $18 {[%emt 0:00:10]} Rxb5 {[%emt 0:01:11]} (32... Bxg2 33. Nxd6 $18) (32... Nxd5 {might work better.} 33. Rxh3 Nf4) 33. axb5 $18 {[%emt 0:00:07]} Bxg2 {[%emt 0:00:07]} 34. Kxg2 {[%emt 0:00:10]} Nc8 {[%emt 0:00:41]} 35. Bd1 {[%emt 0:00:12]} (35. Qxa5 Qxf2+ 36. Kh3 Qf1+ (36... Qxc2 $2 37. Qd2 $19) 37. Kh4 Qh1+ (37... Qxc1 38. Qd8 Qh1+ 39. Kg3 h4+ 40. Kg4 Rxd8 41. Rf3 Qh2 42. Bd1 Kh7 43. b4 Rf8 44. Bc2 Rf4+ 45. Rxf4 Qg3#) 38. Rh3 Qxc1 39. Rc3 Qh1+ (39... Qxb2 $2 40. Qa3 $19) 40. Kg3 h4+ 41. Kg4 Rf4#) 35... Nb6 {[%emt 0:01:35]} 36. Rxa5 {[%emt 0:00:50]} (36. Qxa5 {gets mated.} Qxf2+ 37. Kh3 Qf1+ 38. Kg3 Qg1+ (38... Qxd1 $2 39. Qd2 $19) 39. Kh3 Rf2 (39... Qxd1 $2 40. Qd2 $19) (39... Qxd1 $2 40. Qd2 $19)) ({Don't play} 36. Be3 Qb7 37. Rxa5 (37. Qxa5 Nxd5 38. b6 Nf4+ 39. Bxf4 Qxe4+ 40. Bf3 Qxf4 $14) 37... Rf4 $18) 36... Qb7 {[%emt 0:00:53]} 37. Be3 {[%emt 0:01:05]} Nxd5 {[%emt 0:00:27]} (37... Rb8 $142 38. Qb4 Bf8) 38. exd5 $18 {[%emt 0:00:09]} Qxd5+ {[%emt 0:00:06]} 39. Kg1 {[%emt 0:00:35]} h4 {[%emt 0:00:16]} 40. b6 {[%emt 0:00:38]} Qc6 {[%emt 0:00:15]} 41. Qd2 {[%emt 0:30:17]} 1-0

[Event "45th FIDE Olympiad 2024"]
[Site "Budapest"]
[Date "2024.09.15"]
[Round "5.31"]
[White "Lee Luen Mang, Stefan"]
[Black "Obediah, Saah"]
[Result "0-1"]
[ECO "C02"]
[WhiteElo "1803"]
[BlackElo "1976"]
[PlyCount "124"]
[EventDate "2024.09.05"]
[EventType "team-tourn"]
[EventCountry "HUN"]
[WhiteTeam "Mauritius"]
[BlackTeam "Liberia"]
[WhiteTeamCountry "MRI"]
[BlackTeamCountry "LBR"]
[TimeControl "40/5400+30:1800+30"]

1. e4 e6 2. d4 d5 3. e5 c5 4. c3 Nc6 5. Nf3 Qb6 6. Bd3 Bd7 7. dxc5 Bxc5 8. O-O Bf8 9. Re1 Nge7 10. h4 Ng6 11. h5 Nge7 12. a4 Na5 13. Na3 a6 14. b4 Nac6 15. Rb1 Qc7 16. a5 Na7 17. Qb3 Rc8 18. Be3 Nb5 19. Nxb5 Bxb5 20. Bxb5+ axb5 21. Rbc1 Nc6 22. Bb6 Qd7 23. Qb1 Be7 24. Qd3 O-O 25. Nd2 Bg5 26. Bc5 Rfe8 27. g3 Bxd2 28. Qxd2 Nxa5 29. h6 Qd8 30. Qf4 Nb3 31. hxg7 Nxc1 32. Rxc1 b6 33. Bd4 Qc7 34. Kg2 Qc4 35. Re1 Qd3 36. g4 Ra8 37. f3 Ra2+ 38. Kg3 Qc2 39. Qh6 Qg2+ 40. Kf4 Qd2+ 41. Re3 Rb2 42. Bxb6 Rc8 43. Qf6 Rc2 44. Bd4 Rc1 45. Qh4 Rg1 46. Qh3 Rg2 47. Kg5 Re2 48. f4 Rxe3 49. Qxe3 Qxe3 50. Bxe3 Rxc3 51. Bd2 Rd3 52. Be1 Kxg7 53. f5 h6+ 54. Kf4 Rd4+ 55. Kf3 Re4 56. Bc3 Kh7 57. f6 Kg6 58. Kf2 Rxg4 59. Kf3 Kf5 60. Bd2 h5 61. Bc3 h4 62. Kf2 h3 {0-} 0-1

[Event "45th FIDE Olympiad 2024"]
[Site "Budapest"]
[Date "2024.09.15"]
[Round "5.32"]
[White "Iordachescu, Viorel"]
[Black "Vokhidov, Shamsiddin"]
[Result "0-1"]
[ECO "E11"]
[WhiteElo "2572"]
[BlackElo "2650"]
[Annotator "TA"]
[PlyCount "72"]
[EventDate "2024.09.05"]
[EventType "team-tourn"]
[EventCountry "HUN"]
[SourceTitle "playchess.com"]
[Source "ChessBase"]
[SourceQuality "1"]
[WhiteTeam "Moldova"]
[BlackTeam "Uzbekistan"]
[WhiteTeamCountry "MDA"]
[BlackTeamCountry "UZB"]
[TimeControl "40/5400+30:1800+30"]

{[%evp 9,72,0,29,3,16,0,22,23,16,1,7,23,0,0,49,0,0,12,10,4,0,13,32,0,8,0,0,0,0,0,0,-187,-206,-256,-255,-422,-441,-449,-458,-1005,-1008,-957,-1079,-1060,-1094,-1069,-1110,-1107,-1110,-1072,-1102,-5277,-5269,-2791,-872,-5106,-4810,-5089,-1900,-29983,-29980,-29985,-29986,-29991,-29984]} 1. d4 {[%emt 0:00:15]} Nf6 {[%emt 0:00:06]} 2. c4 {[%emt 0:00:10]} e6 {[%emt 0:00:04]} 3. Nf3 {[%emt 0:00:14]} d5 {[%emt 0:00:11]} 4. g3 {[%emt 0:00:19]} Bb4+ {[%emt 0:00:06]} 5. Bd2 {[%emt 0:00:20]} a5 {[%emt 0:00:03]} 6. Qc1 {[%emt 0:01:32]} O-O {[%emt 0:00:56]} 7. Bg2 {[%emt 0:00:24]} Be7 {[%emt 0:00:03]} 8. O-O {[%emt 0:01:27] The position is equal.} c6 {[%emt 0:00:41]} 9. Rd1 {[%emt 0:01:33]} Nbd7 {[%emt 0:01:51]} 10. Bf4 {[%emt 0:00:55]} h6 {[%emt 0:00:08]} 11. Nc3 {[%emt 0:07:34]} a4 {[%emt 0:12:28]} (11... dxc4 $11 12. Nd2 Nb6) 12. Ne5 {[%emt 0:06:08]} g5 {[%emt 0:05:07]} 13. Nxd7 $1 {[%emt 0:07:58]} Nxd7 {[%emt 0:04:32]} 14. Bd2 {[%emt 0:01:59]} dxc4 {[%emt 0:11:18]} 15. a3 {[%emt 0:00:30][%cal Oh2h4]} Ra6 {[%emt 0:06:18]} 16. f4 {[%emt 0:04:53]} f5 {[%emt 0:11:51]} 17. fxg5 {[%emt 0:08:04]} hxg5 {[%emt 0:07:09]} 18. e4 {[%emt 0:01:25]} c5 {[%emt 0:02:33]} 19. exf5 $1 {[%emt 0:03:01]} cxd4 {[%emt 0:02:30]} 20. Ne4 {[%emt 0:12:37] [#] Black continues to play with concentration.} (20. fxe6 $1 $11 {and White has nothing to worry.} Nc5 (20... dxc3 21. exd7 Bxd7 22. Bxc3 $14) (20... Rxe6 21. Nd5 $11) 21. Nd5 Bxe6 22. Nxe7+ Qxe7 23. Bb4 (23. Bxg5 Qd7 $11)) 20... b5 $1 $19 {[%emt 0:05:02]} ({Resist} 20... exf5 21. Qxc4+ Kh7 22. Nf2 $17) 21. fxe6 {[%emt 0:09:39]} Rxe6 {[%emt 0:00:10]} 22. Nxg5 $2 {[%emt 0:00:36]} (22. Bxg5 {might work better.} d3 (22... Rxe4 $2 23. Bxe7 Rxe7 24. Rxd4 $19) 23. Bxe7 Qxe7 24. Qg5+ Qxg5 25. Nxg5) 22... Re5 {[%emt 0:04:46]} 23. h4 {[%emt 0:06:07]} Qb6 {[%emt 0:05:21] ...d3+ is the strong threat.} 24. Bf4 {[%emt 0:04:38]} (24. Rf1 $142 d3+ 25. Kh1 Bxg5 (25... Rxf1+ 26. Qxf1 Bxg5 27. hxg5 $19) 26. Bxg5) 24... d3+ {[%emt 0:01:17]} 25. Kh1 {[%emt 0:00:22]} Bxg5 {[%emt 0:00:51]} 26. Bxg5 {[%emt 0:02:59]} Bb7 {[%emt 0:04:35]} 27. Rd2 {[%emt 0:00:25] White is weak on the light squares} Re2 {[%emt 0:04:30]} 28. Rxe2 {[%emt 0:00:52]} dxe2 {[%emt 0:00:02]} 29. Bf4 {[%emt 0:01:43]} Re8 {[%emt 0:00:17]} 30. Bd2 {[%emt 0:06:04]} Bxg2+ {[%emt 0:02:10]} 31. Kxg2 {[%emt 0:00:06]} Qc6+ {[%emt 0:00:14]} 32. Kg1 {[%emt 0:03:09]} Ne5 {[%emt 0:01:01]} 33. Qc3 {[%emt 0:01:25]} Qe4 {[%emt 0:02:57]} (33... Nf3+ $142 34. Kf2 Nxd2 35. Qxd2 Rf8+ 36. Qf4 Rxf4+ 37. gxf4 Qe4 38. Rg1+ Kf7) 34. Be3 {[%emt 0:05:27]} Nd3 {[%emt 0:00:38] Black mates.} 35. Bd2 {[%emt 0:02:08]} e1=Q+ {[%emt 0:00:52]} 36. Bxe1 {[%emt 0:00:39]} Nxe1 {[%emt 0:00:03] Weighted Error Value: White=0.92/Black=0.19 (very precise) .  Loses game:     	White=1     	---        Mistake:       	White=2     	Black=1      Inaccurate:     	White=2     	---        OK:         	White=6     	Black=4      Best:        	---       	Black=2      Strong:       	White=2     	Black=1} 0-1

[Event "45th FIDE Olympiad 2024"]
[Site "Budapest"]
[Date "2024.09.15"]
[Round "5.32"]
[White "Arnold, Smith"]
[Black "Naipal, Hoolan"]
[Result "1/2-1/2"]
[ECO "C78"]
[WhiteElo "1915"]
[BlackElo "1851"]
[PlyCount "112"]
[EventDate "2024.09.05"]
[EventType "team-tourn"]
[EventCountry "HUN"]
[WhiteTeam "Liberia"]
[BlackTeam "Mauritius"]
[WhiteTeamCountry "LBR"]
[BlackTeamCountry "MRI"]
[TimeControl "40/5400+30:1800+30"]

1. e4 e5 2. Nf3 Nc6 3. Bb5 a6 4. Ba4 Nf6 5. d3 b5 6. Bb3 Bc5 7. c3 d6 8. O-O h6 9. h3 O-O 10. a4 Rb8 11. axb5 axb5 12. Nbd2 Re8 13. Re1 Bb6 14. Nf1 Ne7 15. d4 Ng6 16. Ng3 Bb7 17. Bc2 Ra8 18. Rxa8 Qxa8 19. d5 Rd8 20. Qe2 c6 21. dxc6 Bxc6 22. Bd3 Qb7 23. Be3 Nf4 24. Bxf4 exf4 25. Nf5 d5 26. e5 Ne4 27. N5d4 Ra8 28. Bxb5 Bxb5 29. Qxb5 Rb8 30. c4 dxc4 31. Qxc4 Ng5 32. e6 Bxd4 33. Nxd4 Nxe6 34. Nxe6 fxe6 35. Qxe6+ Kh8 36. Rb1 f3 37. g3 Qb4 38. Qe3 Qf8 39. Qf4 Qxf4 40. gxf4 Rb3 41. Kf1 Kg8 42. Ke1 Kf7 43. Kd2 Kf6 44. Kc2 Rb5 45. b4 Kf5 46. Kc3 Kxf4 47. Kc4 Rb7 48. b5 g5 49. b6 h5 50. Kc5 g4 51. Rb4+ Kg5 52. hxg4 hxg4 53. Kd4 g3 54. fxg3 f2 55. Rb1 Rxb6 56. Rf1 Kg4 1/2-1/2

[Event "45th FIDE Olympiad 2024"]
[Site "Budapest"]
[Date "2024.09.15"]
[Round "5.33"]
[White "Albornoz Cabrera, Carlos Daniel"]
[Black "Giri, Anish"]
[Result "1/2-1/2"]
[ECO "B12"]
[WhiteElo "2579"]
[BlackElo "2724"]
[Annotator "TA"]
[PlyCount "64"]
[EventDate "2024.09.05"]
[EventType "team-tourn"]
[EventCountry "HUN"]
[SourceTitle "playchess.com"]
[Source "ChessBase"]
[SourceQuality "1"]
[WhiteTeam "Cuba"]
[BlackTeam "Netherlands"]
[WhiteTeamCountry "CUB"]
[BlackTeamCountry "NED"]
[TimeControl "40/5400+30:1800+30"]

{[%evp 12,64,42,31,33,8,8,5,9,11,24,17,17,9,55,15,7,8,9,8,14,4,23,9,27,0,0,0,8,0,0,0,0,0,0,-7,-7,0,0,-50,-25,-37,-40,-46,0,0,0,0,0,0,16,0,0,0,33]} 1. e4 {[%emt 0:00:03]} c6 {[%emt 0:00:05][%cal Bc7c6,Bc6c5,Bc5c4][%mdl 32]} 2. d4 {[%emt 0:00:04]} d5 {[%emt 0:00:06]} 3. e5 {[%emt 0:00:03]} Bf5 {[%emt 0:00:05]} 4. Nf3 {[%emt 0:00:05]} e6 {[%emt 0:00:06]} 5. Be2 {[%emt 0:00:03]} c5 {[%emt 0:00:07]} 6. Be3 {[%emt 0:01:04]} Qb6 {[%emt 0:00:24]} 7. Nc3 {[%emt 0:00:51]} c4 {[%emt 0:00:07]} 8. Qc1 {[%emt 0:00:43]} Bb4 {[%emt 0:00:07]} 9. O-O {[%emt 0:01:36]} Bxc3 {[%emt 0:00:04]} 10. bxc3 {[%emt 0:00:04]} Bg4 {[%emt 0:00:03]} 11. a4 {[%emt 0:02:51]} Nc6 {[%emt 0:05:19]} 12. Qe1 {[%emt 0:06:49]} O-O-O {[%emt 0:04:44]} (12... Nge7 $11) 13. Ng5 {[%emt 0:03:55][%csl LRf7,LRg4]} (13. Bxc4 {looks sharper.} Bxf3 14. gxf3 dxc4 15. d5) 13... Bxe2 {[%emt 0:00:09]} 14. Qxe2 {[%emt 0:00:07]} Qc7 {[%emt 0:04:43]} 15. Bc1 {[%emt 0:06:46]} h6 {[%emt 0:04:20]} 16. Nh3 {[%emt 0:04:55]} Nge7 {[%emt 0:08:01]} 17. Nf4 {[%emt 0:00:15]} g6 {[%emt 0:03:16]} 18. Qf3 {[%emt 0:22:47]} Kb8 {[%emt 0:17:27]} 19. Ba3 {[%emt 0:00:00][%cal Oa4a5]} Ka8 {[%emt 0:08:41]} 20. Ne2 {[%emt 0:00:00]} Nf5 {[%emt 0:03:09]} 21. Rfb1 {[%emt 0:02:12]} Rd7 {[%emt 0:00:17]} 22. Ng3 {[%emt 0:08:08]} Ng7 {[%emt 0:12:52]} 23. Rb5 {[%emt 0:02:25]} Qd8 {[%emt 0:01:38]} 24. Rab1 {[%emt 0:01:43]} h5 {[%emt 0:00:22]} 25. Nf1 {[%emt 0:01:36]} (25. h3 $11) 25... Nf5 {[%emt 0:03:51][%cal Bg7f5,Bf5h4,Bh4g6][%mdl 32]} 26. Ne3 {[%emt 0:00:59]} Nh4 {[%emt 0:01:54]} 27. Qg3 {[%emt 0:05:37]} g5 {[%emt 0:00:36]} (27... f5 $15) 28. f4 $1 $11 {[%emt 0:01:47] The position is equal.} gxf4 {[%emt 0:00:55]} ({Reject} 28... a6 $6 29. fxg5 axb5 30. axb5 $18) 29. Qxf4 {[%emt 0:00:02]} Ng6 {[%emt 0:00:08]} 30. Qf3 {[%emt 0:02:10]} Nh4 {[%emt 0:01:28]} 31. Qf4 {[%emt 0:01:56][%cal Ob5b7]} Ng6 {[%emt 0:00:59]} 32. Qf3 {[%emt 0:00:04]} Nh4 {[%emt 0:00:13] Weighted Error Value: White=0.08 (flawless) /Black=0.07 (flawless) .  Mistake:       	White=1     	Black=2      Inaccurate:     	White=2     	Black=1      OK:         	White=7     	Black=13     Best:        	---       	Black=1      Strong:       	White=1     	---} 1/2-1/2

[Event "45th FIDE Olympiad 2024"]
[Site "Budapest"]
[Date "2024.09.15"]
[Round "5.33"]
[White "Eichab, Charles"]
[Black "Al-Hajiri, Bader"]
[Result "0-1"]
[ECO "A20"]
[WhiteElo "2013"]
[BlackElo "1947"]
[PlyCount "78"]
[EventDate "2024.09.05"]
[EventType "team-tourn"]
[EventCountry "HUN"]
[WhiteTeam "Namibia"]
[BlackTeam "Kuwait"]
[WhiteTeamCountry "NAM"]
[BlackTeamCountry "KUW"]
[TimeControl "40/5400+30:1800+30"]

1. c4 e5 2. Nf3 e4 3. Nd4 Nc6 4. e3 Nxd4 5. exd4 d5 6. d3 exd3 7. Bxd3 Nf6 8. O-O Be7 9. c5 c6 10. Re1 O-O 11. h3 Nd7 12. Nd2 Bf6 13. Nf3 Re8 14. Bf4 Nf8 15. Ne5 g6 16. Bh2 Ne6 17. Bc2 Bd7 18. Qd3 b6 19. b4 a5 20. a3 axb4 21. axb4 Rxa1 22. Rxa1 bxc5 23. bxc5 Nxc5 24. Qf3 Ne6 25. Nxd7 Bxd4 26. Be5 Qxd7 27. Qf6 Bxe5 28. Qxe5 Nc5 29. Qd4 Ne4 30. Bxe4 Rxe4 31. Ra8+ Re8 32. Ra7 Qd6 33. g3 c5 34. Qd3 Qe6 35. Kh2 d4 36. Rc7 Qd6 37. Ra7 Qd5 38. Qd2 d3 39. Qf4 d2 {0-} 0-1